bitfinex/quotes_ETHUSD_20250813
["timestamp","ask_amount","ask_price","bid_price","bid_amount"]
[1755056499311,1.1469,4638.4,4638.3,3.385]
[1755056500309,1.1469,4638.4,4638.1,7.852]
[1755056500505,1.1469,4638.3,4638.2,3.384]
[1755056501590,0.707,4639.0,4638.2,3.384]
[1755056501796,0.815,4639.0,4638.2,3.492]
[1755056502723,0.815,4639.0,4638.2,0.108]
[1755056503101,59.04686716,4639.2,4638.3,3.381]
[1755056503315,59.04686716,4639.2,4638.7,0.108]
[1755056503639,1.1469,4639.1,4638.8,3.381]
[1755056504402,0.707,4639.1,4638.8,3.381]
[1755056505837,0.707,4639.1,4638.8,3.56875265]
[1755056506644,0.707,4639.1,4638.8,3.381]
[1755056507451,1.1469,4639.1,4638.8,3.381]
[1755056507948,1.1469,4639.0,4638.9,3.375]
[1755056508462,1.1469,4639.0,4638.7,0.108]
[1755056508659,0.707,4638.9,4638.8,3.375]
[1755056508835,1.1469,4638.9,4638.8,3.375]
[1755056509238,1.1469,4638.9,4638.8,3.374]
[1755056510757,0.707,4638.9,4638.8,3.374]
[1755056510951,59.04686716,4639.2,4638.8,3.374]
[1755056512127,59.04686716,4639.2,4638.9,3.371]
[1755056513021,59.04686716,4639.2,4638.5,0.83266187]
[1755056513022,59.04686716,4639.2,4639.1,0.108]
[1755056513227,59.04686716,4639.2,4639.1,3.478]
[1755056515356,59.04686716,4639.2,4639.1,6.164]
[1755056515557,59.04686716,4639.2,4639.1,6.163]
[1755056515867,59.04686716,4639.2,4639.1,6.162]
[1755056517765,59.04686716,4639.2,4639.1,3.476]
[1755056518334,59.04686716,4639.2,4639.1,6.58169052]
[1755056518534,59.04686716,4639.2,4639.1,0.16402056]
[1755056518780,59.04686716,4639.2,4639.1,3.371]
[1755056520058,59.04686716,4639.2,4639.1,3.37]
[1755056521786,59.04686716,4639.2,4639.1,3.7701]
[1755056522074,59.04686716,4639.2,4639.1,3.37]
[1755056522919,60.20646716,4639.2,4638.7,0.64605]
[1755056523102,2.20655568,4639.1,4638.8,3.367]
[1755056523491,1.1596,4639.0,4638.9,3.367]
[1755056523684,1.1596,4639.0,4637.7,0.001]
[1755056523902,1.1596,4638.9,4637.9,0.646164]
[1755056524104,1.1596,4638.8,4637.8,3.367]
[1755056524305,0.11596,4638.7,4637.8,3.367]
[1755056524619,0.7293,4638.6,4637.8,3.367]
[1755056524769,2.20655568,4639.1,4637.9,3.367]
[1755056524972,1.1596,4639.0,4637.9,3.367]
[1755056525384,1.1596,4639.0,4638.1,5.166]
[1755056526686,1.1596,4638.9,4638.1,5.166]
[1755056526986,1.49621557,4638.8,4638.2,3.368]
[1755056527293,1.1596,4638.7,4638.2,3.368]
[1755056527515,1.1596,4638.7,4638.3,3.366]
[1755056527822,1.1596,4638.6,4638.4,3.366]
[1755056527990,1.1596,4638.5,4638.4,3.366]
[1755056529020,60.31446716,4639.2,4638.4,3.366]
[1755056529223,59.04686716,4639.2,4638.4,3.366]
[1755056529395,59.04686716,4639.2,4639.1,0.108]
[1755056529716,59.04686716,4639.2,4639.1,3.474]
[1755056530603,59.04686716,4639.2,4639.1,6.57969052]
[1755056530918,59.04686716,4639.2,4639.1,6.55249052]
[1755056531117,59.04686716,4639.2,4639.1,6.66049052]
[1755056532031,59.04686716,4639.2,4639.1,1.0581]
[1755056532233,59.04686716,4639.2,4639.1,4.024]
[1755056533311,59.04686716,4639.2,4639.1,4.3161]
[1755056533504,59.04686716,4639.2,4639.1,6.55249052]
[1755056533863,59.04686716,4639.2,4639.1,4.3969]
[1755056534139,59.04686716,4639.2,4639.1,1.0309]
[1755056534340,59.04686716,4639.2,4639.1,6.47269052]
[1755056534732,59.04686716,4639.2,4639.1,3.10569052]
[1755056535109,59.04686716,4639.2,4639.1,6.47269052]
[1755056535423,59.04686716,4639.2,4639.1,14.32469052]
[1755056535926,59.04686716,4639.2,4639.1,12.1691]
[1755056536319,59.04686716,4639.2,4639.1,13.92459052]
[1755056536516,59.04686716,4639.2,4639.1,10.55759052]
[1755056536721,59.04686716,4639.2,4639.1,13.92459052]
[1755056537106,59.04686716,4639.2,4639.1,11.769]
[1755056537306,59.04686716,4639.2,4639.1,13.92459052]
[1755056537839,59.04686716,4639.2,4639.1,8.402]
[1755056538005,59.04686716,4639.2,4639.1,11.767]
[1755056539414,60.20646716,4639.2,4639.1,5.166]
[1755056539814,60.20646716,4639.2,4639.1,8.529]
[1755056540751,60.20646716,4639.2,4639.1,5.166]
[1755056541055,60.20646716,4639.2,4639.1,8.528]
[1755056541262,59.04686716,4639.2,4639.1,8.528]
[1755056542554,60.20646716,4639.2,4639.0,0.645944]
[1755056542759,1.1596,4639.1,4639.0,0.645944]
[1755056543065,1.1596,4639.1,4639.0,3.363]
[1755056543424,1.1596,4639.1,4639.0,4.008944]
[1755056543757,1.1596,4639.1,4638.6,0.108]
[1755056543957,1.1596,4639.0,4638.7,3.362]
[1755056544133,2.20655568,4638.9,4638.7,3.52303]
[1755056544334,1.1596,4638.8,4638.7,0.16103]
[1755056544539,1.1596,4638.8,4638.7,3.469611]
[1755056545564,1.1596,4638.8,4638.7,8.634611]
[1755056545779,1.1596,4638.8,4638.7,5.165]
[1755056545958,0.76691557,4638.8,4638.7,8.527]
[1755056546163,1.49621557,4638.8,4638.7,8.527]
[1755056547259,1.1596,4638.8,4638.7,8.527]
[1755056547628,1.1596,4638.8,4638.7,5.165]
[1755056547956,1.1596,4638.8,4638.7,8.526]
[1755056549249,0.7293,4638.8,4638.7,8.526]
[1755056549429,0.4303,4639.1,4638.7,8.526]
[1755056549630,0.88304558,4639.1,4638.7,8.526]
[1755056549829,1.1594,4639.0,4638.7,8.526]
[1755056550030,1.1594,4638.9,4638.7,8.526]
[1755056550232,0.7293,4638.8,4638.7,8.526]
[1755056551467,1.1594,4638.8,4638.7,8.524]
[1755056551630,1.42863456,4638.8,4638.7,8.524]
[1755056552563,1.42863456,4638.8,4638.7,5.165]
[1755056552750,1.42863456,4638.8,4638.7,5.166]
[1755056552751,1.32063456,4638.8,4638.7,5.166]
[1755056552957,1.32063456,4638.8,4638.7,8.525]
[1755056553160,1.45063456,4638.8,4638.7,5.166]
[1755056553475,1.45063456,4638.8,4638.7,8.525]
[1755056555155,1.02053456,4638.8,4638.7,8.525]
[1755056555542,1.02053456,4638.8,4638.7,9.171211]
[1755056555939,0.29123456,4638.8,4638.7,9.171211]
[1755056556240,0.13,4638.8,4638.7,9.171211]
[1755056558838,0.13,4638.8,4638.7,5.812211]
[1755056559039,1.2894,4638.8,4638.7,9.171211]
[1755056559337,0.13,4638.8,4638.7,9.171211]
[1755056559536,0.13,4638.8,4638.7,9.169211]
[1755056560065,59.17686716,4639.2,4638.7,9.169211]
[1755056562538,1.1594,4639.1,4638.7,5.812211]
[1755056562741,3.36595568,4639.0,4638.8,3.354]
[1755056562942,1.1594,4638.9,4638.7,5.812211]
[1755056563139,1.1594,4638.9,4638.8,3.354]
[1755056563345,2.20655568,4639.0,4638.8,3.354]
[1755056563643,2.20655568,4639.0,4638.9,3.354]
[1755056564076,2.31455568,4639.0,4638.7,5.812211]
[1755056564373,2.31455568,4639.0,4638.8,3.354]
[1755056564374,2.20655568,4638.9,4638.8,3.354]
[1755056564584,3.36595568,4638.9,4638.8,3.354]
[1755056565742,3.36595568,4638.9,4638.8,3.353]
[1755056567041,2.20655568,4638.9,4638.8,3.353]
[1755056567261,0.108,4638.9,4638.8,3.353]
[1755056567463,1.2674,4638.9,4638.8,3.353]
[1755056567667,1.2674,4638.9,4638.7,5.812232]
[1755056567971,0.108,4638.9,4638.7,5.812232]
[1755056568280,0.108,4638.9,4638.8,3.351]
[1755056568448,3.04385568,4638.9,4638.8,3.351]
[1755056568767,2.31455568,4638.9,4638.8,3.351]
[1755056569470,2.31455568,4638.9,4638.8,5.166]
[1755056569674,0.108,4638.9,4638.8,5.166]
[1755056570037,59.28486716,4639.2,4638.8,5.166]
[1755056570275,58.69506716,4639.2,4638.9,1.3]
[1755056570474,45.75021257,4639.2,4639.1,0.55]
[1755056570678,45.75021257,4639.2,4639.1,0.99753577]
[1755056570881,45.64221257,4639.2,4639.1,0.99753577]
[1755056571083,45.64221257,4639.2,4639.1,3.15312629]
[1755056571238,45.64221257,4639.2,4639.1,6.53212629]
[1755056571645,45.64221257,4639.2,4639.1,3.15312629]
[1755056572088,45.64221257,4639.2,4639.1,6.53112629]
[1755056572848,45.64221257,4639.2,4639.1,0.99753577]
[1755056573050,45.64221257,4639.2,4639.1,4.37353577]
[1755056573769,45.64221257,4639.2,4639.1,6.52912629]
[1755056573974,45.64221257,4639.2,4639.1,0.99753577]
[1755056574160,45.64221257,4639.2,4639.1,4.37353577]
[1755056574376,45.64221257,4639.2,4639.1,0.44753577]
[1755056574559,45.64221257,4639.2,4639.1,3.376]
[1755056574745,45.64221257,4639.2,4638.7,0.64489928]
[1755056574947,45.64221257,4639.2,4638.8,3.376]
[1755056575146,45.64221257,4639.2,4638.7,0.64489928]
[1755056575465,45.64221257,4639.2,4639.1,5.166]
[1755056575854,45.64221257,4639.2,4639.1,8.542]
[1755056576054,45.64221257,4639.2,4639.1,5.166]
[1755056576255,45.64221257,4639.2,4639.1,8.541]
[1755056577978,45.64221257,4639.2,4639.1,5.166]
[1755056578364,45.64221257,4639.2,4639.1,9.088]
[1755056579892,45.64421257,4639.2,4639.1,9.088]
[1755056580751,45.64421257,4639.2,4639.1,0.55]
[1755056580955,45.64421257,4639.2,4639.1,4.029]
[1755056582065,45.64421257,4639.2,4639.1,4.028]
[1755056582666,45.64421257,4639.2,4639.1,0.108]
[1755056582869,46.09271257,4639.2,4639.1,0.108]
[1755056583065,46.09271257,4639.2,4639.1,3.477]
[1755056583270,46.09271257,4639.2,4639.1,0.108]
[1755056583591,45.64421257,4639.2,4639.1,3.477]
[1755056583958,45.64421257,4639.2,4639.1,4.027]
[1755056584878,45.64421257,4639.2,4639.1,0.108]
[1755056585082,46.83181257,4639.2,4639.1,3.477]
[1755056585291,45.64421257,4639.2,4639.1,3.344]
[1755056585495,45.64421257,4639.2,4639.1,11.876]
[1755056586272,45.64421257,4639.2,4639.1,5.823]
[1755056586472,45.64421257,4639.2,4639.1,9.19]
[1755056587017,45.64421257,4639.2,4639.1,5.273]
[1755056587309,46.83181257,4639.2,4639.1,8.531]
[1755056587788,46.83181257,4639.2,4639.1,8.639]
[1755056588272,46.83181257,4639.2,4639.1,5.273]
[1755056588473,49.00898693,4639.2,4639.1,8.64]
[1755056588691,49.00898693,4639.2,4639.1,5.273]
[1755056588873,49.00898693,4639.2,4639.1,8.64]
[1755056589072,49.00898693,4639.2,4639.1,8.532]
[1755056589500,46.83181257,4639.2,4639.1,5.165]
[1755056589674,46.83181257,4639.2,4639.1,8.532]
[1755056591393,46.83181257,4639.2,4639.1,8.53]
[1755056592307,46.83181257,4639.2,4639.1,5.165]
[1755056592614,46.83181257,4639.2,4639.1,8.53]
[1755056592820,49.03836825,4639.2,4639.1,8.529]
[1755056593516,49.03836825,4639.2,4639.1,5.165]
[1755056593719,49.03836825,4639.2,4639.1,8.529]
[1755056594185,49.03836825,4639.2,4639.1,8.528]
[1755056595594,49.03836825,4639.2,4639.1,8.527]
[1755056596021,49.03836825,4639.2,4639.1,8.526]
[1755056598932,46.83181257,4639.2,4639.1,8.526]
[1755056601029,46.83181257,4639.2,4639.1,8.523]
[1755056602235,46.93981257,4639.2,4639.1,8.523]
[1755056602734,46.93981257,4639.2,4639.1,5.165]
[1755056603030,46.93981257,4639.2,4639.1,8.523]
[1755056603341,49.14636825,4639.2,4639.1,8.523]
[1755056603699,49.14636825,4639.2,4639.1,5.165]
[1755056603901,49.14636825,4639.2,4639.1,8.521]
[1755056607339,49.14636825,4639.2,4639.1,5.165]
[1755056607510,49.14636825,4639.2,4639.1,8.519]
[1755056609318,49.14636825,4639.2,4639.1,5.165]
[1755056609513,49.14636825,4639.2,4639.1,8.517]
[1755056609713,49.14636825,4639.2,4639.1,5.165]
[1755056609938,49.14636825,4639.2,4639.1,8.517]
[1755056610739,49.14636825,4639.2,4639.1,5.165]
[1755056610939,49.14636825,4639.2,4639.1,8.519]
[1755056611146,49.14636825,4639.2,4639.1,5.167]
[1755056612204,49.14636825,4639.2,4639.1,8.518]
[1755056613542,49.14636825,4639.2,4639.1,5.167]
[1755056613712,49.69636825,4639.2,4639.1,5.167]
[1755056613912,49.69636825,4639.2,4639.1,8.518]
[1755056615453,47.95876825,4639.2,4639.1,8.518]
[1755056615750,49.14286825,4639.2,4639.1,8.518]
[1755056615968,49.03486825,4639.2,4639.1,8.518]
[1755056617160,49.03486825,4639.2,4639.1,8.52]
[1755056619653,49.58486825,4639.2,4639.1,8.519]
[1755056619874,49.58486825,4639.2,4639.1,5.167]
[1755056620340,0.55,4639.1,4638.6,0.001]
[1755056620547,2.20655568,4639.0,4638.6,0.001]
[1755056621073,1.1841,4638.9,4638.7,0.868]
[1755056621453,1.1841,4638.8,4638.7,0.868]
[1755056623442,1.1841,4638.8,4638.6,0.001]
[1755056623443,0.55,4638.7,4638.6,0.001]
[1755056623646,3.94065568,4638.7,4638.1,0.001]
[1755056624150,2.20655568,4639.0,4638.1,0.001]
[1755056624151,0.55,4638.5,4638.1,0.001]
[1755056624570,1.1841,4638.4,4638.1,0.001]
[1755056624850,1.7341,4638.4,4638.3,0.246]
[1755056625567,1.7341,4638.4,4638.3,5.168]
[1755056625771,1.7341,4638.4,4638.3,8.519]
[1755056625971,2.01551,4638.4,4638.3,5.168]
[1755056626380,2.01551,4638.4,4638.3,8.519]
[1755056626587,2.01551,4638.4,4638.3,5.168]
[1755056628581,2.01551,4638.4,4638.3,8.52]
[1755056628888,2.01551,4638.4,4638.3,5.168]
[1755056629075,2.01551,4638.4,4638.3,8.52]
[1755056629786,0.28141,4638.4,4638.3,8.52]
[1755056629961,0.108,4638.4,4638.3,8.52]
[1755056630660,0.108,4638.4,4638.3,8.519]
[1755056632160,0.108,4638.4,4638.3,5.168]
[1755056632605,0.4684,4638.7,4638.3,5.168]
[1755056632756,2.20655568,4639.0,4638.3,5.168]
[1755056632962,2.67495568,4638.9,4638.3,5.168]
[1755056633461,2.20655568,4638.9,4638.4,3.352]
[1755056635259,2.20655568,4638.9,4638.3,5.168]
[1755056635473,2.20655568,4638.9,4638.4,3.351]
[1755056636060,2.67495568,4638.9,4638.4,3.351]
[1755056636662,0.28665179,4638.8,4638.4,3.351]
[1755056636988,0.75505179,4638.8,4638.5,3.351]
[1755056637153,1.1841,4638.7,4638.0,2.687]
[1755056637354,0.7157,4638.7,4638.0,2.687]
[1755056637557,0.78929075,4638.6,4638.1,8.519]
[1755056637793,1.1841,4638.5,4638.0,2.687]
[1755056637994,0.32089075,4638.6,4638.2,5.168]
[1755056638195,1.1841,4638.4,4638.0,2.687]
[1755056638368,1.1841,4638.3,4638.0,2.687]
[1755056638568,1.30251,4638.2,4638.1,8.519]
[1755056639387,1.30251,4638.2,4638.0,2.687]
[1755056639598,0.11841,4638.2,4638.0,2.687]
[1755056639896,0.55,4639.1,4638.0,2.687]
[1755056640099,0.55,4639.1,4638.1,8.519]
[1755056640394,0.55,4638.9,4638.1,8.519]
[1755056640595,1.1538,4638.8,4638.0,2.687]
[1755056640801,0.55,4638.6,4638.0,2.687]
[1755056641007,0.55,4638.4,4638.1,8.519]
[1755056641204,1.1538,4638.3,4638.1,8.519]
[1755056641527,1.1538,4638.2,4638.1,8.519]
[1755056642401,1.2618,4638.2,4638.0,2.687]
[1755056642699,1.2618,4638.2,4638.1,8.519]
[1755056642700,0.658,4638.2,4638.1,8.519]
[1755056642906,0.83139268,4638.2,4638.1,8.519]
[1755056643076,0.55,4638.2,4638.1,8.519]
[1755056643274,1.7038,4638.2,4638.1,8.519]
[1755056643671,1.8118,4638.2,4638.1,5.168]
[1755056644907,1.8118,4638.2,4638.1,8.52]
[1755056645071,1.8118,4638.2,4638.1,8.521]
[1755056645279,1.99298,4638.2,4638.1,8.521]
[1755056645481,1.99298,4638.2,4638.1,8.52]
[1755056645710,0.28918,4638.2,4638.1,5.169]
[1755056645915,1.2618,4638.2,4638.1,5.169]
[1755056646304,1.8118,4638.2,4638.1,5.169]
[1755056646504,1.8118,4638.2,4637.5,0.001]
[1755056646689,1.7038,4638.1,4637.6,5.169]
[1755056646890,0.108,4637.6,4637.5,0.001]
[1755056647223,1.2618,4637.6,4637.5,6.006]
[1755056647384,1.2618,4637.6,4637.5,0.001]
[1755056647385,1.38798,4637.6,4637.5,0.001]
[1755056647900,1.38798,4637.6,4637.5,7.32]
[1755056648218,1.38798,4637.6,4637.3,0.001]
[1755056648405,0.55,4637.4,4637.3,0.001]
[1755056648720,0.55,4637.4,4637.3,5.352]
[1755056648903,2.11322308,4637.4,4637.2,0.001]
[1755056649218,1.2519,4637.3,4637.2,0.001]
[1755056649391,1.7038,4637.3,4637.2,0.001]
[1755056649583,1.8118,4637.3,4637.2,0.001]
[1755056649819,2.817,4637.2,4636.8,0.001]
[1755056650113,21.07696069,4637.0,4636.8,0.001]
[1755056650317,23.28351637,4637.0,4636.9,0.156]
[1755056650520,0.55,4636.9,4636.8,0.001]
[1755056650727,6.12741325,4636.9,4636.8,0.183]
[1755056650893,6.17735568,4636.9,4636.8,0.183]
[1755056651098,3.91035568,4636.9,4636.8,0.183]
[1755056651398,6.06696893,4636.9,4636.8,0.183]
[1755056651795,6.06696893,4636.9,4636.8,0.001]
[1755056652400,2.267,4636.7,4635.3,0.001]
[1755056652705,2.81507845,4635.9,4635.3,0.001]
[1755056653124,1.7038,4635.9,4635.3,0.001]
[1755056653312,0.55,4636.4,4635.3,0.001]
[1755056653624,0.108,4635.9,4635.3,0.001]
[1755056653821,0.108,4635.9,4635.8,0.996]
[1755056653991,0.108,4635.9,4635.8,1.0124]
[1755056655314,0.108,4635.9,4635.8,6.1824]
[1755056656213,0.108,4635.9,4635.8,8.5394]
[1755056660302,0.10212272,4635.9,4635.8,8.5394]
[1755056661649,0.10212272,4635.9,4635.8,8.5242]
[1755056662419,0.10212272,4635.9,4635.8,8.523]
[1755056662918,0.10212272,4635.9,4635.8,8.5242]
[1755056663315,0.10212272,4635.9,4635.8,5.171]
[1755056663519,0.10212272,4635.9,4635.8,8.522]
[1755056664208,0.108,4636.6,4635.9,0.55]
[1755056664545,0.108,4636.9,4636.2,0.108]
[1755056664903,0.108,4636.9,4636.3,0.0164]
[1755056666319,0.108,4636.9,4636.3,0.55]
[1755056666644,0.108,4637.2,4636.6,0.108]
[1755056666820,0.002,4636.8,4636.7,3.3674]
[1755056667212,0.002,4636.8,4636.7,3.9174]
[1755056667721,0.002,4636.8,4636.7,3.9022]
[1755056668042,0.002,4636.8,4636.7,0.5512]
[1755056668221,0.002,4636.8,4636.7,0.55]
[1755056668403,0.002,4636.8,4636.7,3.901]
[1755056668811,0.002,4636.8,4636.7,3.9174]
[1755056670010,0.002,4636.8,4636.7,3.9022]
[1755056670207,0.002,4636.8,4636.7,0.55]
[1755056670711,0.002,4636.8,4636.6,0.108]
[1755056670911,0.002,4636.8,4636.7,3.351]
[1755056671330,0.002,4636.8,4635.8,0.551]
[1755056671642,0.4571,4636.8,4636.1,0.108]
[1755056671845,0.108,4636.6,4635.9,0.108]
[1755056672341,0.108,4636.6,4636.0,3.35]
[1755056672843,0.108,4636.6,4636.1,3.35]
[1755056673147,1.1309,4636.5,4636.2,3.35]
[1755056673509,0.4551,4636.4,4636.2,3.35]
[1755056674064,0.108,4636.3,4635.8,0.001]
[1755056674216,0.108,4636.3,4635.9,3.35]
[1755056675260,0.108,4636.3,4636.0,3.35]
[1755056675543,0.108,4636.3,4636.1,8.519]
[1755056675761,0.108,4636.3,4636.1,5.169]
[1755056675919,0.002,4636.8,4636.2,3.35]
[1755056676119,0.4551,4636.7,4636.1,5.169]
[1755056676315,0.6758,4636.6,4636.2,3.35]
[1755056676516,1.1309,4636.5,4636.3,3.35]
[1755056676712,0.11329,4636.6,4636.1,5.169]
[1755056676914,1.1309,4636.4,4636.1,5.169]
[1755056677136,1.1309,4636.3,4636.0,2.688]
[1755056677335,1.1309,4636.2,4636.1,5.169]
[1755056677535,1.1309,4636.2,4636.1,8.519]
[1755056678470,1.1309,4636.2,4636.0,2.688]
[1755056678674,0.4551,4636.2,4636.1,8.519]
[1755056678962,0.002,4636.8,4636.1,8.519]
[1755056679357,1.1309,4636.7,4636.1,8.519]
[1755056679665,0.4551,4636.6,4636.1,8.519]
[1755056679825,0.6758,4636.5,4636.1,8.519]
[1755056680029,1.1309,4636.5,4636.1,8.519]
[1755056680266,0.4551,4636.4,4636.1,8.519]
[1755056680428,0.002,4636.8,4636.1,8.519]
[1755056682862,0.002,4636.8,4636.2,3.35]
[1755056683250,0.002,4636.8,4636.3,3.35]
[1755056684466,0.4571,4636.8,4636.4,3.99653]
[1755056684657,0.6778,4636.8,4636.4,0.64653]
[1755056684839,0.4551,4636.7,4636.4,0.64653]
[1755056685040,0.4551,4636.7,4636.1,5.169]
[1755056685041,1.1309,4636.7,4636.5,3.35]
[1755056685251,0.11329,4636.6,4636.5,3.35]
[1755056685440,1.24419,4636.6,4636.5,3.35]
[1755056685835,1.35219,4636.6,4636.5,3.35]
[1755056686236,1.35219,4636.6,4636.1,5.169]
[1755056686436,1.1309,4636.5,4636.2,3.35]
[1755056686733,0.108,4636.2,4636.1,5.169]
[1755056686939,1.2389,4636.2,4636.1,5.169]
[1755056687139,1.2389,4636.2,4636.1,8.519]
[1755056687572,1.2389,4636.2,4636.1,5.169]
[1755056687743,1.2389,4636.2,4636.1,8.519]
[1755056687944,1.3752319,4636.2,4636.1,8.519]
[1755056688338,1.3752319,4636.2,4636.1,5.169]
[1755056688642,1.3752319,4636.2,4636.1,8.519]
[1755056689631,1.3752319,4636.2,4636.1,5.169]
[1755056689859,1.3752319,4636.2,4636.1,8.519]
[1755056690061,1.5052319,4636.2,4636.1,5.169]
[1755056690273,1.5052319,4636.2,4636.1,8.519]
[1755056691146,1.5052319,4636.2,4636.1,5.169]
[1755056691474,1.5052319,4636.2,4636.1,8.519]
[1755056692049,1.5052319,4636.2,4636.1,5.169]
[1755056692250,0.3743319,4636.2,4636.1,5.169]
[1755056692454,1.3689,4636.2,4636.1,8.519]
[1755056693542,0.13,4636.2,4636.1,8.519]
[1755056693749,0.108,4636.2,4636.1,8.519]
[1755056695080,0.108,4636.2,4636.1,5.169]
[1755056695387,0.108,4636.2,4636.1,8.519]
[1755056695753,1.2609,4636.2,4636.1,5.17]
[1755056695948,1.38699,4636.2,4635.4,0.001]
[1755056696266,0.55,4636.0,4635.3,0.001]
[1755056696588,0.55,4635.8,4633.4,0.087256]
[1755056696778,0.13,4635.7,4633.4,0.087256]
[1755056697077,0.28370971,4635.6,4633.4,0.087256]
[1755056697280,0.55,4635.5,4634.9,0.261]
[1755056697683,1.1309,4635.4,4634.9,0.261]
[1755056697878,0.55,4635.6,4633.4,0.001]
[1755056698083,1.1309,4635.3,4634.9,0.032]
[1755056698391,1.1309,4635.3,4633.4,0.001]
[1755056698392,0.11309,4635.2,4635.0,0.379]
[1755056698594,1.1309,4635.1,4635.0,0.379]
[1755056699279,1.1309,4635.1,4635.0,0.798]
[1755056699481,1.1309,4635.1,4633.4,0.001]
[1755056699653,0.13,4635.7,4635.0,1.322]
[1755056700181,1.1588,4635.6,4635.0,1.322]
[1755056700369,1.1588,4635.5,4633.6,0.0012]
[1755056700574,1.1588,4635.5,4634.9,1.377]
[1755056700784,1.1588,4635.4,4634.9,1.377]
[1755056700982,0.67609,4636.2,4634.9,1.377]
[1755056700983,1.40468,4635.3,4634.9,1.377]
[1755056701290,1.1588,4635.2,4634.9,1.377]
[1755056701462,1.1588,4635.2,4633.7,0.0012]
[1755056701784,1.2888,4635.1,4634.9,3.35]
[1755056702082,1.1588,4635.0,4633.4,0.001]
[1755056702287,0.25888,4634.9,4633.4,0.001]
[1755056702500,1.41768,4634.9,4634.8,3.351]
[1755056702791,0.13,4634.9,4634.8,3.351]
[1755056703689,0.13,4635.3,4634.8,3.351]
[1755056704091,0.1288,4636.4,4634.9,4.45374171]
[1755056704257,0.1288,4636.4,4635.0,0.55]
[1755056704461,0.1288,4636.4,4635.1,3.90674171]
[1755056704795,0.1288,4636.4,4635.2,0.55]
[1755056705010,0.1288,4636.4,4634.8,0.001]
[1755056705306,0.1288,4636.4,4634.9,6.07]
[1755056705460,0.1288,4636.4,4635.0,3.382]
[1755056705655,0.1288,4636.4,4635.0,3.49]
[1755056705656,0.108,4635.6,4635.0,3.49]
[1755056705870,0.108,4635.6,4635.0,0.108]
[1755056706090,0.108,4635.6,4635.1,3.382]
[1755056706313,0.25756,4636.4,4635.2,0.55]
[1755056706466,0.108,4636.1,4635.4,0.108]
[1755056707299,0.108,4636.1,4635.1,0.6326644]
[1755056707300,0.108,4636.1,4635.2,0.108]
[1755056707603,0.108,4635.6,4635.3,3.381]
[1755056708098,0.108,4635.6,4635.1,0.4734]
[1755056708307,0.108,4635.6,4635.2,3.38]
[1755056708601,0.4734,4635.6,4635.3,3.38]
[1755056708761,0.108,4635.2,4634.9,7.859]
[1755056708961,0.108,4635.2,4635.0,3.381]
[1755056709391,0.108,4635.2,4634.9,7.859]
[1755056709820,0.108,4635.2,4635.0,3.38]
[1755056710474,0.2368,4635.2,4635.1,3.379]
[1755056710984,0.7102,4635.2,4635.1,3.379]
[1755056711190,1.3956,4635.2,4635.1,3.379]
[1755056711496,1.53516,4635.2,4635.1,3.379]
[1755056711800,1.53516,4635.2,4634.9,7.859]
[1755056712100,1.53516,4635.2,4635.0,3.381]
[1755056712101,1.1588,4635.1,4635.0,3.381]
[1755056713797,1.1588,4635.1,4634.9,7.859]
[1755056713993,0.2368,4635.2,4635.0,3.379]
[1755056714579,1.1588,4635.1,4635.0,3.379]
[1755056714780,1.29836,4635.1,4635.0,3.379]
[1755056716112,1.42716,4635.1,4635.0,3.377]
[1755056718309,1.42716,4635.1,4634.9,7.859]
[1755056718510,0.26836,4635.1,4635.0,3.375]
[1755056718712,0.26836,4635.1,4634.9,7.859]
[1755056718713,0.1288,4635.1,4634.9,5.171]
[1755056718879,0.1288,4635.1,4635.0,3.374]
[1755056719075,1.1588,4635.0,4634.9,5.171]
[1755056719282,1.8376,4635.0,4634.9,8.545]
[1755056720086,1.8376,4635.0,4634.9,5.171]
[1755056720416,2.03216,4635.0,4634.9,5.171]
[1755056720818,2.03216,4635.0,4634.9,8.543]
[1755056722015,0.55,4634.9,4634.8,0.001]
[1755056722221,1.8168,4634.9,4634.4,0.001]
[1755056722389,1.8168,4634.9,4634.6,3.371]
[1755056722584,0.32336,4635.0,4634.6,3.371]
[1755056722585,0.55,4634.7,4634.6,3.371]
[1755056722796,1.8168,4634.7,4634.5,5.173]
[1755056723023,1.1314,4634.7,4634.6,3.371]
[1755056723204,0.658,4634.7,4634.6,3.371]
[1755056723717,1.8168,4634.7,4634.5,5.173]
[1755056723884,1.20508,4634.6,4634.5,5.173]
[1755056724086,2.01928,4634.6,4634.5,5.173]
[1755056724319,2.01928,4634.6,4634.5,8.542]
[1755056725423,0.31048,4634.6,4634.5,8.542]
[1755056725721,0.1288,4634.6,4634.5,8.543]
[1755056726642,0.1288,4634.6,4634.5,5.173]
[1755056726929,1.2876,4634.6,4634.5,8.543]